Workbook

Sheet MSU
B1: Jussi-Pekka Toikka | E1: 23.11.1979
B2: SUPERPESIS | E2: Runkosarja | I2: Kärkilyönnit (KL), pesänvälit | P2: Ylempi loppusarja | W2: Alempi loppusarja | AD2: Arvo-ottelut | AH2: Mitalit
B3: Vuosi | C3: Sija | D3: Seura | E3: OTT | F3: KUN | G3: LÖI | H3: TOI | I3: KL | J3: 0 > 1 | K3: 1 > 2 | L3: 2 > 3 | M3: 3 > k | N3: KL-% | P3: OTT | Q3: KUN | R3: LÖI | S3: TOI | T3: KL | U3: KL-% | W3: OTT | X3: KUN | Y3: LÖI | Z3: TOI | AA3: KL | AB3: KL-% | AD3: IL | AE3: LL | AF3: hSM | AG3: K | AH3: H | AI3: P
B4: 1990 | C4: 8. | D4: HP 2 | F4: suomensarja
B5: ****
B6: 1999 | C6: 12. | D6: HP | E6: 5 | F6: 0 | G6: 0 | H6: 0 | I6: 3 | J6: 1 | K6: 2 | L6: 0 | M6: =PRODUCT(F6+G6) -> 0 | N6: 27.3 %
B7: 2000
B8: 2001
B9: 2002 | C9: 9. | D9: HP | F9: suomensarja
B10: 2003 | C10: 8. | D10: HP | F10: suomensarja
B11: 2004 | C11: 9. | D11: HaPe 2 | F11: suomensarja
B12: Yhteensä | E12: =SUM(E6:E11) -> 5 | F12: 0 | G12: 0 | H12: 0 | I12: 3 | J12: 1 | K12: 2 | L12: 0 | M12: 0 | N12: 27.3 % | O12: 34.04255319 | P12: 0 | Q12: 0 | R12: 0 | S12: 0 | T12: 0 | U12: 0.0 % | W12: 0 | X12: 0 | Y12: 0 | Z12: 0 | AA12: 0 | AB12: 0.0 % | AD12: 0 | AE12: 0 | AF12: 0 | AG12: 0 | AH12: 0 | AI12: 0
B13: Pesispörssi | D13: =SUM(F12:H12)+((I12-F12-G12)/3)+(E12/3)+(Z12*25)+(AA12*25)+(AB12*10)+(AC12*25)+(AD12*20)+(AE12*15) -> 2.7
B15: URA SUPERISSA | E15: OTT | F15: KUN | G15: LÖI | H15: TOI | I15: KL | K15: ka/L | L15: ka/T | M15: ka/KL | N15: KL-% | P15: ENSIMMÄISET RUNKOSARJASSA
B16: Runkosarja | E16: =PRODUCT(E12) -> 5 | F16: =PRODUCT(F12) -> 0 | G16: =PRODUCT(G12) -> 0 | H16: =PRODUCT(H12) -> 0 | I16: =PRODUCT(I12) -> 3 | K16: =PRODUCT((F16+G16)/E16) -> 0.00 | L16: =PRODUCT(H16/E16) -> 0.00 | M16: =PRODUCT(I16/E16) -> 0.60 | N16: =PRODUCT(N12) -> 27.3 % | O16: 34.04255319 | P16: Ottelu | R16: 18.07. 1999 HP - PattU 0-1 (3-3, 0-4) | Z16: 1. ottelu | AB16: 19 v 7 kk 25 pv
B17: Ylempi loppusarja | P17: Lyöty
B18: Alempi loppusarja | P18: Tuotu
B19: KAIKKI | E19: =SUM(E16:E18) -> 5 | F19: =SUM(F16:F18) -> 0 | G19: =SUM(G16:G18) -> 0 | H19: =SUM(H16:H18) -> 0 | I19: =SUM(I16:I18) -> 3 | K19: =PRODUCT((F19+G19)/E19) -> 0.00 | L19: =PRODUCT(H19/E19) -> 0.00 | M19: =PRODUCT(I19/E19) -> 0.60 | N19: 27.3 % | O19: 34.04255319 | P19: Kunnari
B21: Seurat | D21: HP = Haminan Palloilijat (1928), kasvattajaseura
D22: HaPe = Hamina Pesis (2003)

Sheet MSS
B1: Jussi-Pekka Toikka | E1: 23.11.1979
B2: YKKÖSPESIS | E2: Runkosarja | L2: Runkosarja TOP-10 | Q2: Jatkosarjat | X2: SUOMENSARJA | AA2: Runkosarja | AH2: Runkosarja TOP-10 | AM2: Jatkosarjat
B3: Vuosi | C3: Sija | D3: Seura | E3: OTT | F3: KUN | G3: LÖI | H3: TOI | I3: KL | J3: KL-% | L3: LÖI | M3: TOI | N3: L+T | O3: KL | Q3: OTT | R3: KUN | S3: LÖI | T3: TOI | U3: KL | V3: KL-% | X3: Vuosi | Y3: Sija | Z3: Seura | AA3: OTT | AB3: KUN | AC3: LÖI | AD3: TOI | AE3: KL | AF3: KL-% | AH3: LÖI | AI3: TOI | AJ3: L+T | AK3: KL | AM3: OTT | AN3: KUN | AO3: LÖI | AP3: TOI | AQ3: KL | AR3: KL-%
X4: 1990 | Y4: 8. | Z4: HP 2 | AA4: 5 | AB4: 0 | AC4: 1 | AD4: 3
X6: 2002 | Y6: 9. | Z6: HP | AA6: 11 | AB6: 0 | AC6: 2 | AD6: 2 | AE6: 14 | AF6: 43.8 % | AG6: 32
X7: 2003 | Y7: 8. | Z7: HP | AA7: 14 | AB7: 0 | AC7: 5 | AD7: 2 | AE7: 30 | AF7: 44.8 % | AG7: 67
X8: 2004 | Y8: 9. | Z8: HaPe 2 | AA8: 14 | AB8: 0 | AC8: 5 | AD8: 4 | AE8: 31 | AF8: 36.9 % | AG8: 84
B9: YHTEENSÄ | E9: =SUM(E4:E8) -> 0 | F9: =SUM(F4:F8) -> 0 | G9: =SUM(G4:G8) -> 0 | H9: =SUM(H4:H8) -> 0 | I9: =SUM(I4:I8) -> 0 | J9: 0.0 % | K9: =SUM(K4:K8) -> 0 | Q9: =SUM(Q4:Q8) -> 0 | R9: =SUM(R4:R8) -> 0 | S9: =SUM(S4:S8) -> 0 | T9: =SUM(T4:T8) -> 0 | U9: =SUM(U4:U8) -> 0 | V9: 0.0 % | W9: =SUM(W4:W8) -> 0 | X9: YHTEENSÄ | AA9: =SUM(AA4:AA8) -> 44 | AB9: =SUM(AB4:AB8) -> 0 | AC9: =SUM(AC4:AC8) -> 13 | AD9: =SUM(AD4:AD8) -> 11 | AE9: =SUM(AE4:AE8) -> 75 | AF9: =PRODUCT(AE9/AG9) -> 41.0 % | AG9: =SUM(AG4:AG8) -> 183 | AM9: =SUM(AM4:AM8) -> 0 | AN9: =SUM(AN4:AN8) -> 0 | AO9: =SUM(AO4:AO8) -> 0 | AP9: =SUM(AP4:AP8) -> 0 | AQ9: =SUM(AQ4:AQ8) -> 0 | AR9: 0.0 % | AS9: =SUM(AS4:AS8) -> 0
B11: KAIKKI OTTELUT | E11: OTT | F11: KUN | G11: LÖI | H11: TOI | I11: KL | J11: KL-% | L11: ka/L | M11: ka/T | N11: ka/l+t | O11: ka/kl | R11: Seurat | T11: HP = Haminan Palloilijat (1928), kasvattajaseura
B12: SUPERPESIS | E12: 5 | F12: 0 | G12: 0 | H12: 0 | I12: 3 | J12: 27.3 % | K12: 0 | L12: =PRODUCT((F12+G12)/E12) -> 0.00 | M12: =PRODUCT(H12/E12) -> 0.00 | N12: =PRODUCT((F12+G12+H12)/E12) -> 0.00 | O12: =PRODUCT(I12/E12) -> 0.60 | T12: HaPe = Hamina Pesis (2003)
B13: YKKÖSPESIS | E13: =PRODUCT(E9+Q9) -> 0 | F13: =PRODUCT(F9+R9) -> 0 | G13: =PRODUCT(G9+S9) -> 0 | H13: =PRODUCT(H9+T9) -> 0 | I13: =PRODUCT(I9+U9) -> 0 | J13: 0.0 % | K13: =PRODUCT(K9+W9) -> 0 | L13: 0.00 | M13: 0.00 | N13: 0.00 | O13: 0.00
B14: SUOMENSARJA | E14: =PRODUCT(AA9+AM9) -> 44 | F14: =PRODUCT(AB9+AN9) -> 0 | G14: =PRODUCT(AC9+AO9) -> 13 | H14: =PRODUCT(AD9+AP9) -> 11 | I14: =PRODUCT(AE9+AQ9) -> 75 | J14: =PRODUCT(I14/K14) -> 41.0 % | K14: =PRODUCT(AG9+AS9) -> 183 | L14: =PRODUCT((F14+G14)/E14) -> 0.30 | M14: =PRODUCT(H14/E14) -> 0.25 | N14: =PRODUCT((F14+G14+H14)/E14) -> 0.55 | O14: 1.92
B15: YHTEENSÄ | E15: =SUM(E12:E14) -> 49 | F15: =SUM(F12:F14) -> 0 | G15: 13 | H15: 11 | I15: 78 | J15: =PRODUCT(I15/K15) -> 42.6 % | K15: =SUM(K12:K14) -> 183 | L15: =PRODUCT((F15+G15)/E15) -> 0.27 | M15: =PRODUCT(H15/E15) -> 0.22 | N15: =PRODUCT((F15+G15+H15)/E15) -> 0.49 | O15: 1.77
